bitfinex/quotes_SOLUSD_20240811
["timestamp","ask_amount","ask_price","bid_price","bid_amount"]
[1723350436127,20.7335,155.68,155.63,31.4561]
[1723350436507,14.31,155.68,155.64,6.425]
[1723350436732,14.31,155.68,155.64,7.70967414]
[1723350437308,14.31,155.68,155.65,7.70917432]
[1723350437628,14.31,155.7,155.65,7.70917432]
[1723350438025,20.7327,155.7,155.65,6.4245]
[1723350438733,14.31,155.7,155.65,7.70911867]
[1723350438912,14.31,155.69,155.65,7.70911867]
[1723350439528,14.31,155.69,155.66,6.4242]
[1723350439721,14.31,155.7,155.66,6.4242]
[1723350440325,14.31,155.7,155.67,1.2845185]
[1723350440525,14.31,155.7,155.68,1.28451872]
[1723350440730,14.31,155.7,155.67,6.4236]
[1723350440931,11.11,155.7,155.66,22.4845]
[1723350441841,11.11,155.71,155.67,7.70818628]
[1723350442217,11.11,155.71,155.66,16.0604]
[1723350442410,11.11,155.69,155.64,6.4249]
[1723350443035,11.11,155.69,155.65,6.4245]
[1723350443233,11.11,155.69,155.66,6.4241]
[1723350443543,6.4222,155.71,155.67,6.4238]
[1723350443544,11.11,155.71,155.67,6.4238]
[1723350443744,11.11,155.71,155.67,12.6]
[1723350445030,11.11,155.71,155.68,1.28443642]
[1723350446341,11.11,155.71,155.69,1.2844374]
[1723350446558,11.11,155.71,155.68,7.70760329]
[1723350446740,11.11,155.73,155.68,7.70760329]
[1723350447532,11.11,155.73,155.69,6.4228]
[1723350447738,11.11,155.73,155.7,1.28425515]
[1723350448036,11.11,155.72,155.68,6.4234]
[1723350448237,0.8453623,155.75,155.67,6.1762]
[1723350448238,11.11,155.71,155.67,6.1762]
[1723350448631,11.11,155.71,155.67,12.6]
[1723350449728,11.11,155.71,155.68,6.4233]
[1723350450727,6.421,155.74,155.7,15.4625]
[1723350450929,11.11,155.73,155.71,1.28423896]
[1723350452147,0.8453623,155.75,155.71,1.28423896]
[1723350452321,11.11,155.74,155.7,21.885]
[1723350453543,11.11,155.73,155.7,21.885]
[1723350453730,11.11,155.73,155.7,15.4625]
[1723350453926,11.11,155.71,155.67,6.1762]
[1723350454133,11.11,155.7,155.67,6.1762]
[1723350454443,11.11,155.7,155.67,12.5998]
[1723350455229,11.11,155.72,155.67,22.2348]
[1723350455535,11.11,155.73,155.7,6.4225]
[1723350456044,11.11,155.73,155.71,1.28426269]
[1723350456244,11.11,155.73,155.7,6.4225]
[1723350456462,7.2659623,155.75,155.71,6.422]
[1723350456463,11.11,155.74,155.71,6.422]
[1723350456757,11.11,155.74,155.7,22.4788]
[1723350457333,11.11,155.74,155.71,6.4221]
[1723350457739,11.11,155.74,155.7,16.0563]
[1723350458354,11.11,155.73,155.7,16.0563]
[1723350459232,11.11,155.73,155.71,6.4221]
[1723350459751,11.11,155.74,155.7,22.4788]
[1723350459959,11.11,155.73,155.7,22.4788]
[1723350461941,11.11,155.72,155.67,6.1762]
[1723350462133,11.11,155.71,155.67,6.1762]
[1723350463758,11.11,155.71,155.68,6.4233]
[1723350464750,0.8453623,155.75,155.67,6.1762]
[1723350464751,11.11,155.69,155.67,6.1762]
[1723350465052,11.11,155.69,155.66,31.5225]
[1723350465259,11.11,155.69,155.67,6.4237]
[1723350465749,11.11,155.69,155.66,37.9467]
[1723350465929,11.11,155.69,155.67,6.4237]
[1723350466255,11.11,155.69,155.66,37.9467]
[1723350466554,11.11,155.69,155.67,7.70842341]
[1723350467055,11.11,155.69,155.67,6.4238]
[1723350468257,11.11,155.68,155.63,6.4534]
[1723350468452,19.54167025,155.75,155.63,6.4534]
[1723350468453,11.11,155.66,155.63,6.4534]
[1723350469663,11.11,155.66,155.63,12.8788]
[1723350469849,11.11,155.65,155.63,6.4254]
[1723350470765,11.11,155.65,155.64,6.425]
[1723350471138,6.423,155.69,155.64,6.425]
[1723350471139,11.11,155.67,155.64,6.425]
[1723350473946,11.11,155.67,155.63,6.4254]
[1723350476645,11.11,155.67,155.64,6.425]
[1723350480180,11.11,155.67,155.62,38.6905]
[1723350480464,11.11,155.67,155.63,6.4254]
[1723350481347,11.11,155.65,155.63,6.4254]
[1723350485369,6.423,155.69,155.63,6.4254]
[1723350485565,11.11,155.66,155.63,6.4254]
[1723350494379,6.423,155.69,155.63,6.4254]
[1723350494676,11.11,155.66,155.63,6.4254]
[1723350496968,11.11,155.65,155.63,6.4254]
[1723350502779,11.11,155.67,155.63,6.4254]
[1723350502987,6.423,155.69,155.63,6.4254]
[1723350503190,6.6968202,155.73,155.64,17.34652059]
[1723350503393,11.11,155.7,155.68,6.4234]
[1723350504179,11.11,155.7,155.68,7.7079264]
[1723350504486,11.11,155.72,155.68,7.7079264]
[1723350505673,17.5317,155.72,155.68,1.2845264]
[1723350507566,11.11,155.71,155.68,1.2845264]
[1723350508888,11.11,155.71,155.67,22.4833]
[1723350510193,11.11,155.71,155.67,16.0595]
[1723350510568,0.8453623,155.75,155.64,6.4394]
[1723350510569,17.5332,155.69,155.64,6.4394]
[1723350510776,11.11,155.69,155.64,12.8643]
[1723350511585,6.4218,155.72,155.67,6.4237]
[1723350511793,11.11,155.7,155.67,6.4237]
[1723350511994,11.11,155.7,155.66,6.4241]
[1723350513772,0.8453623,155.75,155.74,6.4209]
[1723350514589,0.8453623,155.75,155.73,7.70530988]
[1723350515386,11.9453623,155.75,155.72,16.0543]
[1723350515889,11.9453623,155.75,155.71,6.4221]
[1723350518996,11.9453623,155.75,155.72,6.4217]
[1723350520203,11.1,155.74,155.69,16.0575]
[1723350520392,11.1,155.74,155.71,6.4221]
[1723350520697,0.8453623,155.75,155.71,6.4221]
[1723350520698,11.9453623,155.75,155.71,6.4221]
[1723350521687,0.8453623,155.75,155.71,16.0545]
[1723350521898,11.9453623,155.75,155.71,16.0545]
[1723350522677,0.8453623,155.75,155.73,6.4213]
[1723350523607,0.8453623,155.75,155.72,21.7756]
[1723350523780,11.9453623,155.75,155.72,21.7756]
[1723350523974,11.9453623,155.75,155.71,16.0545]
[1723350523975,0.8453623,155.75,155.71,22.4766]
[1723350524171,0.8453623,155.75,155.72,6.4217]
[1723350524387,0.8453623,155.75,155.73,6.4212]
[1723350524587,0.8453623,155.75,155.71,16.0545]
[1723350524588,0.8453623,155.75,155.74,6.4209]
[1723350525790,0.8453623,155.75,155.73,6.4213]
[1723350526596,0.8453623,155.75,155.72,6.4217]
[1723350531294,0.8453623,155.75,155.73,23.05908576]
[1723350531488,0.8453623,155.75,155.74,1.28395358]
[1723350533008,0.8453623,155.75,155.73,21.775]
[1723350533009,0.8453623,155.75,155.73,15.3539]
[1723350533727,11.1,155.74,155.68,23.07728112]
[1723350533910,11.1,155.72,155.7,6.4224]
[1723350534092,11.1,155.74,155.7,6.4224]
[1723350534294,11.9453623,155.75,155.71,7.70632233]
[1723350535293,7.2658623,155.75,155.71,1.28422233]
[1723350535493,18.3658623,155.75,155.71,1.28422233]
[1723350535991,18.3658623,155.75,155.68,21.7933]
[1723350535992,11.1,155.73,155.68,21.7933]
[1723350536195,17.5214,155.73,155.69,1.28437895]
[1723350536595,11.1,155.73,155.69,1.28437895]
[1723350537013,11.1,155.73,155.7,6.4225]
[1723350537316,0.8453623,155.75,155.71,1.28425142]
[1723350537501,0.8453623,155.75,155.71,16.0551]
[1723350537827,11.1,155.74,155.71,16.0551]
[1723350538027,11.1,155.74,155.72,1.28418595]
[1723350538805,11.1,155.74,155.71,22.4772]
[1723350539009,0.8453623,155.75,155.72,6.4216]
[1723350541099,11.9453623,155.75,155.72,6.4216]
[1723350542215,11.9453623,155.75,155.71,16.0551]
[1723350542617,0.8453623,155.75,155.71,22.477]
[1723350542809,11.9453623,155.75,155.71,22.477]
[1723350543212,11.1,155.73,155.71,22.477]
[1723350543415,11.1,155.73,155.7,6.4223]
[1723350543915,11.1,155.74,155.7,6.4223]
[1723350544106,0.8453623,155.75,155.7,6.4223]
[1723350544325,11.1,155.74,155.71,7.70636923]
[1723350544526,11.1,155.74,155.71,6.4221]
[1723350545634,0.8453623,155.75,155.71,6.4221]
[1723350545813,11.1,155.74,155.71,6.4221]
[1723350546206,11.1,155.74,155.7,6.4225]
[1723350547707,11.1,155.74,155.71,1.28427121]
[1723350548723,11.1,155.74,155.71,7.70637121]
[1723350549038,11.1,155.74,155.71,6.4221]
[1723350549415,11.1,155.74,155.7,6.4225]
[1723350550515,11.1,155.74,155.71,1.28426485]
[1723350550709,11.1,155.74,155.71,7.70636367]
[1723350551021,11.9453623,155.75,155.72,6.4216]
[1723350553430,11.9453623,155.75,155.73,7.70529373]
[1723350554151,0.8453623,155.75,155.73,7.70529373]
[1723350554437,0.8453623,155.75,155.73,6.4212]
[1723350555112,0.8453623,155.75,155.72,7.70577464]
[1723350555328,11.9453623,155.75,155.71,22.4774]
[1723350556444,18.3659623,155.75,155.71,16.0553]
[1723350556827,18.3659623,155.75,155.71,17.33956608]
[1723350557833,11.9453623,155.75,155.71,22.4774]
[1723350558264,11.9453623,155.75,155.71,16.0553]
[1723350559343,18.3660623,155.75,155.71,16.0553]
[1723350560953,11.9453623,155.75,155.71,16.0553]
[1723350564245,11.9453623,155.75,155.71,22.4773]
[1723350565445,0.8453623,155.75,155.72,6.4217]
[1723350565644,11.1,155.74,155.72,6.4217]
[1723350566942,0.8453623,155.75,155.73,6.4212]
[1723350567250,11.9453623,155.75,155.73,6.4212]
[1723350568533,0.8453623,155.75,155.73,6.4212]
[1723350570939,0.8453623,155.75,155.72,6.4217]
[1723350570940,11.9453623,155.75,155.72,6.4217]
[1723350571659,0.8453623,155.75,155.74,22.4732]
[1723350571834,0.8453623,155.75,155.74,23.75713179]
[1723350573258,0.8453623,155.75,155.74,67.4732]
[1723350575332,0.8453623,155.75,155.74,22.4732]
[1723350584664,0.8453623,155.75,155.71,6.4217]
[1723350584966,11.1,155.74,155.71,6.4217]
[1723350585268,11.1,155.74,155.72,6.4217]
[1723350585847,11.1,155.74,155.73,6.4213]
[1723350587561,11.9453623,155.75,155.73,6.4213]
[1723350590374,11.9453623,155.75,155.72,6.4217]
[1723350595077,11.9453623,155.75,155.73,6.4213]
[1723350595779,11.9453623,155.75,155.74,6.4209]
[1723350596973,11.9453623,155.75,155.73,22.4743]
[1723350599569,0.8453623,155.75,155.74,6.4209]
[1723350599772,0.8453623,155.75,155.74,7.70493951]
[1723350601182,0.8453623,155.75,155.74,6.4209]
[1723350601389,0.8453623,155.75,155.74,64.05568692]
[1723350601587,277.5252,155.87,155.8,6.4181]
[1723350601588,16.6252,155.87,155.8,6.4181]
[1723350601764,23.0408,155.87,155.8,1.2834918]
[1723350602096,11.1,155.85,155.82,6.4175]
[1723350602264,11.1,155.84,155.79,16.0466]
[1723350602471,11.1,155.82,155.79,16.0466]
[1723350603280,11.1,155.82,155.79,22.4652]
[1723350603488,11.1,155.82,155.8,6.4182]
[1723350603792,11.1,155.83,155.81,6.418]
[1723350604175,6.4156,155.87,155.82,6.4176]
[1723350604379,11.1,155.84,155.79,16.0466]
[1723350604690,11.1,155.84,155.79,22.4651]
[1723350605383,11.1,155.84,155.8,6.4183]
[1723350605687,11.1,155.84,155.81,6.418]
[1723350605888,6.4159,155.87,155.81,6.418]
[1723350606089,6.4159,155.87,155.82,6.4176]
[1723350606090,11.1,155.84,155.82,6.4176]
[1723350606690,17.4705623,155.91,155.82,6.4176]
[1723350606691,6.4152,155.88,155.82,6.4176]
[1723350606877,11.1,155.84,155.82,6.4176]
[1723350608398,11.1,155.86,155.83,6.4172]
[1723350608783,11.1,155.86,155.82,16.0441]
[1723350608982,11.1,155.86,155.82,22.4617]
[1723350609185,11.1,155.86,155.83,1.28332236]
[1723350609381,11.1,155.86,155.82,16.0441]
[1723350609985,11.1,155.86,155.82,22.4614]
[1723350610191,11.1,155.86,155.83,6.4169]
[1723350610880,6.4153,155.88,155.83,6.4169]
[1723350611094,11.1,155.85,155.82,22.4617]
[1723350611682,11.1,155.85,155.82,16.0441]
[1723350612599,11.1,155.85,155.82,22.4617]
[1723350612808,0.12549,155.9,155.83,1.28331469]
[1723350612988,6.4148,155.89,155.84,6.4167]
[1723350613309,11.1,155.88,155.84,6.4167]
[1723350613483,6.4148,155.89,155.84,6.4167]
[1723350613687,11.1,155.88,155.84,6.4167]
[1723350613994,17.5152,155.88,155.83,6.4172]
[1723350614686,11.1,155.86,155.83,6.4171]
[1723350615194,17.5960523,155.91,155.84,6.4168]
[1723350615396,11.1,155.87,155.84,6.4168]
[1723350615701,6.4143,155.9,155.84,6.4168]
[1723350615904,11.1,155.88,155.84,6.4168]
[1723350616404,6.4143,155.9,155.84,6.4168]
[1723350616709,11.1,155.88,155.84,6.4168]
[1723350617001,11.1,155.87,155.84,6.4168]
[1723350618808,11.1,155.87,155.85,6.4163]
[1723350622106,11.1,155.88,155.85,6.4163]
[1723350622416,11.1,155.9,155.86,6.4158]
[1723350623098,11.1,155.9,155.86,7.69889065]
[1723350624420,11.1,155.9,155.86,6.4158]
[1723350625010,7.2592623,155.91,155.86,7.6988443]
[1723350625209,11.1,155.89,155.86,7.6988443]
[1723350625802,11.1,155.89,155.86,6.4158]
[1723350626408,11.1,155.9,155.86,6.4158]
[1723350628525,11.1,155.89,155.85,22.4572]
[1723350628725,11.1,155.87,155.82,12.9431]
[1723350629011,11.1,155.87,155.85,6.4164]
[1723350629695,7.2595623,155.91,155.84,16.0418]
[1723350629696,11.1,155.89,155.86,6.416]
[1723350630406,7.2595623,155.91,155.86,6.416]
[1723350630586,11.1,155.89,155.86,6.416]
[1723350630787,7.2595623,155.91,155.87,16.0389]
[1723350630788,0.8453623,155.91,155.87,16.0389]
[1723350630997,11.9453623,155.91,155.88,1.28286816]
[1723350631511,11.9453623,155.91,155.87,16.0389]
[1723350631711,11.9453623,155.91,155.88,6.415]
[1723350632216,11.9453623,155.91,155.87,22.4544]
[1723350632912,0.8453623,155.91,155.9,6.4143]
[1723350633597,0.8453623,155.91,155.89,6.4147]
[1723350634224,0.8453623,155.91,155.9,1.28270843]
[1723350634709,0.8453623,155.91,155.87,16.0389]
[1723350634897,0.8453623,155.91,155.86,15.534]
[1723350634898,11.1,155.88,155.86,15.534]
[1723350635410,0.8453623,155.91,155.87,1.28288783]
[1723350635803,0.8453623,155.91,155.9,6.4143]
[1723350636002,0.8453623,155.91,155.9,7.69693616]
[1723350636998,0.8453623,155.91,155.9,14.17983616]
[1723350637203,0.8453623,155.91,155.9,95.99717651]
[1723350637414,0.8453623,155.91,155.9,94.84026]
[1723350637607,0.8453623,155.91,155.9,105.94026]
[1723350638002,0.8453623,155.91,155.9,107.22257936]
[1723350639433,6.0,155.96,155.95,6.4123]
[1723350639638,6.0,155.96,155.95,7.69442015]
[1723350640232,6.0,155.96,155.95,27.81991015]
[1723350640400,6.0,155.96,155.95,95.99489015]
[1723350640910,6.0,155.96,155.95,96.12038015]
[1723350641624,6.0,155.96,155.95,76.12038015]
[1723350641808,6.0,155.96,155.95,94.83826]
[1723350642007,11.1,156.03,155.98,16.0273]
[1723350642523,6.70244463,156.07,156.02,6.4093]
[1723350642731,11.1,156.05,156.02,6.4093]
[1723350643416,11.1,156.09,156.03,22.6458]
[1723350643721,11.1,156.09,156.05,6.4082]
[1723350644401,11.1,156.09,156.04,16.021]
[1723350644402,11.1,156.07,156.04,16.021]
[1723350644598,6.4065,156.1,156.0,16.025]
[1723350644802,11.1,156.05,156.02,6.4092]
[1723350645220,11.1,156.05,156.0,16.025]
[1723350645520,11.1,156.03,155.99,6.4105]
[1723350645726,11.1,156.03,155.97,1.2818963]
[1723350646237,11.1,156.03,156.0,6.4102]
[1723350646618,11.1,156.05,155.99,17.3081427]
[1723350646928,11.1,156.05,156.03,6.409]
[1723350647132,11.1,156.05,156.04,6.4086]
[1723350647498,11.1,156.05,156.03,6.409]
[1723350648131,11.1,156.05,156.02,16.0232]
[1723350648335,11.1,156.05,156.01,6.4094]
[1723350649214,0.8453623,156.06,156.01,16.0242]
[1723350649524,0.8453623,156.06,156.02,1.28167225]
[1723350649525,11.9453623,156.06,156.02,1.28167225]
[1723350649705,11.9453623,156.06,156.01,16.0242]
[1723350649706,22.9653623,156.06,156.01,16.0242]
[1723350650317,22.9653623,156.06,156.02,1.28167219]
[1723350650515,22.9653623,156.06,156.02,6.4092]
[1723350650827,22.9653623,156.06,156.01,22.434]
[1723350652514,22.9653623,156.06,155.99,6.4104]
[1723350652915,22.12,156.04,155.99,6.4106]
[1723350653508,22.12,156.02,155.97,16.0277]
[1723350653711,22.12,156.02,155.98,6.411]
[1723350654803,22.12,156.02,155.99,6.4105]
[1723350655003,22.12,156.02,155.98,1.28202656]
[1723350655223,22.12,156.02,155.99,6.4106]
[1723350655423,22.12,156.02,155.98,6.411]
[1723350655637,22.12,156.0,155.93,16.032]
[1723350656615,22.12,155.95,155.89,16.0361]
[1723350657020,22.12,155.95,155.92,6.4135]
[1723350657210,22.12,155.97,155.94,6.4127]
[1723350657610,22.12,155.97,155.92,22.4467]
[1723350658006,28.5315,155.97,155.92,22.4467]
[1723350658205,6.4119,155.96,155.92,16.0336]
[1723350658407,6.4119,155.96,155.9,6.4143]
[1723350658408,22.12,155.95,155.9,6.4143]
[1723350658609,28.5331,155.93,155.88,16.0375]
[1723350659433,22.12,155.91,155.88,16.0375]
[1723350660319,22.12,155.91,155.86,6.4159]
[1723350661121,22.12,155.91,155.87,6.4155]
[1723350662641,22.12,155.91,155.86,6.4159]
[1723350664550,22.12,155.87,155.82,6.4176]
[1723350664932,22.12,155.87,155.83,6.4169]
[1723350665658,22.12,155.85,155.82,6.4176]
[1723350667948,22.12,155.85,155.8,16.0451]
[1723350669845,22.12,155.85,155.8,22.4635]
[1723350670258,45.0,155.84,155.8,22.4635]
[1723350673340,45.0,155.84,155.81,6.418]
[1723350674854,45.0,155.84,155.8,16.0451]
[1723350675152,22.12,155.81,155.76,16.0493]
[1723350675357,22.12,155.81,155.78,6.4189]
[1723350677062,22.12,155.81,155.79,6.4188]
[1723350679740,22.12,155.81,155.78,6.4192]
[1723350680263,45.0,155.8,155.76,16.0493]
[1723350680461,22.12,155.79,155.76,16.0493]
[1723350680661,22.12,155.77,155.72,16.0534]
[1723350680851,22.12,155.79,155.76,6.4201]
[1723350682359,22.12,155.79,155.74,22.4721]
[1723350683447,22.12,155.77,155.74,22.4721]
[1723350683647,22.12,155.77,155.72,6.4214]
[1723350684266,45.0,155.76,155.72,6.4214]
[1723350684758,45.0,155.76,155.7,38.1147]
[1723350684759,45.0,155.76,155.73,6.4212]
[1723350684965,22.12,155.77,155.75,6.4205]
[1723350685865,22.12,155.77,155.74,6.4209]
[1723350686655,22.12,155.77,155.75,6.4204]
[1723350687353,6.4181,155.81,155.76,6.42]
[1723350687560,6.4181,155.81,155.75,6.4204]
[1723350687760,22.12,155.79,155.75,6.4204]
[1723350688256,22.12,155.79,155.74,22.4722]
[1723350691766,11.1,155.77,155.74,22.4722]
[1723350692970,11.1,155.76,155.74,22.4722]
[1723350695666,11.1,155.75,155.7,38.1144]
[1723350695864,11.1,155.75,155.7,16.0555]
[1723350696776,11.1,155.75,155.72,6.4217]
[1723350697271,11.1,155.74,155.72,6.4217]
[1723350699374,11.1,155.74,155.71,6.4221]
[1723350700075,11.1,155.73,155.71,6.4221]
[1723350700278,11.1,155.73,155.7,22.4781]
[1723350701962,11.1,155.72,155.68,6.4231]
[1723350702159,11.1,155.71,155.68,6.4231]
[1723350703069,11.1,155.71,155.69,6.4229]
[1723350703875,11.1,155.7,155.66,16.0596]
[1723350704075,11.1,155.69,155.66,16.0596]
[1723350704280,11.1,155.69,155.67,6.4234]
[1723350706056,11.1,155.68,155.66,16.0596]
[1723350706278,11.1,155.68,155.67,6.4238]
[1723350706582,11.1,155.69,155.67,6.4238]
[1723350706756,0.12549,155.75,155.67,6.4238]
[1723350706962,6.4213,155.74,155.68,6.4234]
[1723350707270,11.1,155.7,155.68,6.4234]
[1723350708166,11.1,155.69,155.67,6.4238]
[1723350710163,11.1,155.68,155.67,6.4238]
[1723350711286,11.1,155.68,155.66,22.4836]
[1723350713789,11.1,155.69,155.67,6.4238]
[1723350716399,11.1,155.68,155.67,6.4238]
[1723350718001,6.4219,155.72,155.67,6.4238]
[1723350718172,11.1,155.7,155.67,6.4238]
[1723350718879,11.1,155.75,155.68,24.22519431]
[1723350719093,11.1,155.76,155.73,6.4211]
[1723350720101,11.1,155.76,155.72,6.4217]
[1723350720397,11.1,155.76,155.74,6.4208]
[1723350720574,6.4172,155.83,155.78,6.4191]
[1723350720773,11.1,155.82,155.79,1.28370189]
[1723350721094,11.1,155.84,155.8,6.4184]
[1723350721478,21.6078,155.87,155.81,6.418]
[1723350721684,22.17,155.86,155.81,6.418]
[1723350721884,22.17,155.86,155.79,6.4187]
[1723350722274,22.17,155.86,155.8,6.4184]
[1723350722470,6.71179108,155.89,155.81,1.28345646]
[1723350722686,6.71179108,155.89,155.85,6.416]
[1723350722891,22.17,155.9,155.85,1.28310487]
[1723350723204,28.5844,155.9,155.84,16.0419]
[1723350723685,28.5844,155.9,155.83,6.4168]
[1723350723686,22.17,155.88,155.81,6.4176]
[1723350723886,22.17,155.86,155.81,6.4176]
[1723350724284,22.17,155.86,155.82,6.4176]
[1723350726004,22.17,155.88,155.83,16.0428]
[1723350727196,22.17,155.86,155.8,6.4183]
[1723350727507,28.586,155.86,155.81,6.418]
[1723350727688,22.17,155.86,155.81,6.418]
[1723350727883,22.17,155.86,155.82,16.044]
[1723350728289,22.17,155.88,155.84,6.4168]
[1723350730398,22.17,155.9,155.85,16.0408]
[1723350730722,22.17,155.92,155.87,6.4155]
[1723350731584,22.17,155.92,155.88,7.69804253]
[1723350731788,22.17,155.94,155.88,16.0377]
[1723350732787,6.4132,155.93,155.88,16.0377]
[1723350734510,28.5844,155.9,155.84,16.0417]
[1723350735189,22.17,155.88,155.84,22.4584]
[1723350735434,22.17,155.88,155.82,6.4172]
[1723350735707,22.17,155.84,155.8,16.0453]
[1723350735909,22.17,155.84,155.81,6.418]
[1723350736492,22.17,155.84,155.73,1.28355456]
[1723350736493,22.17,155.82,155.77,6.4196]
[1723350738409,22.17,155.8,155.76,16.0498]
[1723350738794,22.17,155.8,155.76,22.4699]
[1723350739993,22.17,155.8,155.72,32.1088]
[1723350739994,22.17,155.78,155.72,16.0539]
[1723350740306,22.17,155.76,155.73,6.4213]
[1723350742893,22.17,155.78,155.72,17.3381838]
[1723350743300,22.17,155.78,155.76,6.4201]
[1723350743705,22.17,155.78,155.74,6.4206]
[1723350743907,22.17,155.78,155.75,6.4204]
[1723350744496,22.17,155.78,155.72,16.0539]
[1723350745018,22.17,155.78,155.75,6.4203]
[1723350745196,22.17,155.78,155.74,6.4208]
[1723350745392,22.17,155.78,155.72,22.4752]
[1723350745597,22.17,155.78,155.73,6.4212]
[1723350746228,22.17,155.76,155.73,6.4212]
[1723350746634,22.17,155.76,155.72,22.4756]
[1723350746800,22.17,155.76,155.72,16.0539]
[1723350747320,22.17,155.78,155.72,16.0539]
[1723350747525,22.17,155.78,155.75,6.4204]
[1723350748103,22.17,155.78,155.74,6.4209]
[1723350749624,22.17,155.78,155.73,6.4213]
[1723350750709,28.5901,155.76,155.71,22.7294]
[1723350751315,22.17,155.76,155.71,38.7848]
[1723350751619,22.17,155.76,155.73,6.4213]
[1723350752428,22.17,155.76,155.71,45.2065]
[1723350752719,22.17,155.76,155.72,6.4217]
[1723350753026,22.17,155.76,155.73,6.4213]
[1723350754420,22.17,155.76,155.71,45.2065]
[1723350756624,28.5902,155.76,155.71,38.7848]
[1723350757735,28.5902,155.76,155.71,45.2069]
[1723350761128,6.4196,155.78,155.72,6.4217]
[1723350761336,6.4196,155.78,155.71,38.7848]
[1723350761337,22.17,155.8,155.74,16.0523]
[1723350761508,22.17,155.8,155.74,17.33617205]
[1723350762118,28.5876,155.82,155.77,6.4193]
[1723350763934,22.17,155.82,155.78,6.4193]
[1723350764126,22.17,155.82,155.78,1.28372554]
[1723350764333,22.17,155.84,155.79,6.4187]
[1723350764839,28.587,155.84,155.78,7.70292554]
[1723350766522,22.17,155.84,155.77,16.0491]
[1723350766718,22.17,155.82,155.77,16.0491]
[1723350767832,6.4181,155.81,155.77,16.0491]
[1723350768039,28.5876,155.82,155.77,16.0491]
[1723350768434,28.5876,155.82,155.77,22.4686]
[1723350768617,22.17,155.82,155.77,22.4686]
[1723350770533,22.17,155.82,155.78,6.4192]
[1723350771735,11.09,155.82,155.78,6.4192]
[1723350776822,11.09,155.82,155.79,6.4187]
[1723350780240,15.425,155.87,155.8,16.0455]
[1723350780421,11.09,155.86,155.83,6.4172]
[1723350780621,11.09,155.86,155.84,6.4167]
[1723350781037,6.4151,155.89,155.84,6.4167]
[1723350781343,11.09,155.88,155.83,22.4602]
[1723350781537,17.5053,155.88,155.83,22.4602]
[1723350781731,17.5053,155.88,155.83,16.043]
[1723350781931,11.09,155.86,155.83,22.4602]
[1723350783647,11.09,155.86,155.83,16.043]
[1723350783949,11.09,155.86,155.8,16.0461]
[1723350784152,17.5061,155.86,155.8,16.0461]
[1723350785147,11.09,155.86,155.8,16.0461]
[1723350786752,6.4152,155.88,155.82,6.4175]
[1723350786948,11.09,155.86,155.83,6.4172]
[1723350787151,45.0,155.87,155.83,6.4172]
[1723350787356,7.71261191,155.93,155.89,6.4145]
[1723350787649,11.09,155.92,155.89,6.4145]
[1723350788039,11.09,155.92,155.88,16.0376]
[1723350788446,11.09,155.9,155.88,16.0376]
[1723350788651,11.09,155.92,155.88,16.0376]
[1723350789031,11.09,155.92,155.89,6.4144]